lending/lending_fUSD_20250501
["ID","MTS","AMOUNT","RATE_DAILY","PERIOD"]
[359525302,1746090641013,-400.0,0.00023,2]
[359525303,1746090641022,-202.4823363,0.00023,2]
[359525304,1746090641032,-259.77,0.00023072,2]
[359525305,1746090641042,-150.0,0.00023287,2]
[359525306,1746090641051,-166.66,0.00023409,2]
[359525307,1746090641061,-4933.59107884,0.00023486,9]
[359525308,1746090641070,-1000.0,0.00023503,2]
[359525309,1746090641079,-189.0,0.00023596,2]
[359525310,1746090641089,-587.0,0.00023598,2]
[359525311,1746090641099,-2351.0,0.00023816,2]
[359525312,1746090641109,-1121.83,0.00023836,2]
[359525313,1746090641118,-300.0,0.00023912,2]
[359525314,1746090641128,-1834.0,0.00024,2]
[359525315,1746090641137,-166.66,0.00024181,2]
[359525316,1746090641146,-1146.34,0.00024212,2]
[359525317,1746090641156,-259.77,0.00024225,2]
[359525318,1746090641165,-241.55673039,0.00024247,2]
[359525319,1746090641174,-4933.59107884,0.00024348,11]
[359525320,1746090641183,-150.01986085,0.00024388,2]
[359525321,1746090641193,-150.0,0.00024657,2]
[359525322,1746090641202,-1000.0,0.00024658,2]
[359525323,1746090641212,-181.0,0.0002474,2]
[359525324,1746090641221,-300.0,0.00024773,2]
[359525325,1746090641231,-442.8326386,0.00024789,2]
[359525326,1746090641240,-243948.682987,0.000248,3]
[359525327,1746090641250,-594633.919263,0.000249,3]
[359525328,1746090641259,-166.66,0.00024954,2]
[359525329,1746090641268,-257.03117795,0.00025,2]
[359525330,1746090641278,-450.0,0.00025,2]
[359525331,1746090641288,-3279.0,0.00025,7]
[359525332,1746090641297,-456.0,0.00025,7]
[359525333,1746090641306,-4933.59107884,0.0002521,12]
[359525334,1746090641316,-200.68964993,0.00025321,2]
[359525335,1746090641325,-259.77,0.00025379,2]
[359525336,1746090641334,-1000.0,0.00025452,2]
[359525337,1746090641344,-498.7842668,0.00025452,2]
[359525338,1746090641355,-500.0,0.00025452,2]
[359525339,1746090641364,-823.0,0.00025698,2]
[359525340,1746090641375,-166.66,0.00025727,2]
[359525341,1746090641384,-250.0,0.00025834,2]
[359525342,1746090641394,-189743.0,0.000259,2]
[359525343,1746090641403,-150.0,0.00026027,2]
[359525344,1746090641413,-1717.0,0.00026061,2]
[359525345,1746090641423,-4933.59107884,0.00026072,14]
[359525346,1746090641434,-1000.0,0.00026115,2]
[359525347,1746090641444,-1019.0,0.00026301,5]
[359525348,1746090641453,-1146.34,0.00026476,2]
[359525349,1746090641463,-166.66,0.00026499,2]
[359525350,1746090641472,-259.77,0.00026532,2]
[359525351,1746090641481,-5569.0,0.000266,3]
[359525352,1746090641491,-4632.5225313,0.00026764,2]
[359525353,1746090641500,-603.9989129,0.00026764,2]
[359525354,1746090641510,-19678.2254861,0.00026764,2]
[359525355,1746090641520,-12524.0707674,0.00026782,2]
[359525356,1746090641529,-193806.5421418,0.00026782,2]
[359525357,1746090641540,-181.7206823,0.00026916,2]
[359525358,1746090641551,-4933.59107884,0.00026934,16]
[359525359,1746090641561,-500.0,0.00027,2]
[359525360,1746090641570,-442.8326386,0.00027233,2]
[359525361,1746090641579,-1002.31288123,0.00027252,2]
[359525362,1746090641590,-505.53479803,0.00027252,2]
[359525363,1746090641600,-1000.0,0.00027252,2]
[359525364,1746090641610,-214.88975929,0.00027252,2]
[359525365,1746090641621,-1000.0,0.00027252,2]
[359525366,1746090641630,-1003.55822071,0.00027252,2]
[359525367,1746090641640,-1000.0,0.00027252,2]
[359525368,1746090641651,-1000.0,0.00027252,2]
[359525369,1746090641660,-507.79745625,0.00027252,2]
[359525370,1746090641669,-177.75275273,0.00027252,2]
[359525371,1746090641679,-407.34403053,0.00027252,2]
[359525372,1746090641691,-1000.0,0.00027252,2]
[359525373,1746090641701,-1000.0,0.00027252,2]
[359525374,1746090641711,-502.20572104,0.00027252,2]
[359525375,1746090641720,-504.14251621,0.00027252,2]
[359525376,1746090641729,-1000.0,0.00027252,2]
[359525377,1746090641739,-166.66,0.00027272,2]
[359525378,1746090641748,-485.48267428,0.00027397,2]
[359525379,1746090641757,-208.06400326,0.00027397,2]
[359525380,1746090641766,-150.0,0.00027397,2]
[359525381,1746090641776,-6633.98,0.00027397,2]
[359525382,1746090641786,-300.0,0.00027397,2]
[359525383,1746090641795,-1000.0,0.00027397,2]
[359525384,1746090641804,-174.54,0.00027397,10]
[359525385,1746090641814,-4568.68,0.00027397,2]
[359525386,1746090641823,-1010.78,0.00027397,2]
[359525387,1746090641832,-434.96,0.00027397,2]
[359525388,1746090641841,-150.99,0.00027397,2]
[359525389,1746090641851,-3194.74,0.00027397,2]
[359525390,1746090641860,-9999.99,0.00027397,2]
[359525391,1746090641870,-499.99,0.00027397,2]
[359525392,1746090641879,-694.02,0.00027397,2]
[359525393,1746090641889,-999.99,0.00027397,2]
[359525394,1746090641898,-374.27818171,0.000274,2]
[359525395,1746090641908,-804.0,0.000274,2]
[359525396,1746090641918,-373.00134975,0.000274,2]
[359525397,1746090641927,-600.0,0.000274,2]
[359525398,1746090641937,-5569.0,0.000274,5]
[359525399,1746090641947,-259.77,0.00027686,2]
[359525400,1746090641956,-4933.59107884,0.00027797,17]
[359525401,1746090641965,-1152.0,0.00027985,2]
[359525402,1746090641975,-241.55673039,0.00028523,2]
[359525403,1746090641985,-4933.59107884,0.00028659,19]
[359525404,1746090641995,-1000.0,0.00028726,2]
[359525405,1746090642005,-1146.34,0.0002874,2]
[359525406,1746090642015,-150.0,0.00028767,2]
[359525407,1746090642024,-6633.98,0.00028767,2]
[359525408,1746090642034,-812.61,0.00028771,2]
[359525409,1746090642043,-259.77,0.0002884,2]
[359525410,1746090642053,-6797.84100435,0.00029,2]
[359525411,1746090642062,-54907.06774504,0.00029,2]
[359525412,1746090642071,-386.78279525,0.00029,6]
[359525413,1746090642081,-260.31776711,0.00029,2]
[359525414,1746090642091,-550.0,0.00029,2]
[359525415,1746090642100,-4933.59107884,0.00029521,21]
[359525416,1746090642108,-442.8326386,0.00029678,2]
[359525417,1746090642118,-500.0,0.00029873,5]
[359525418,1746090642127,-11072.45124997,0.0002991,2]
[359525419,1746090642266,-259.77,0.00029993,2]
[359525420,1746090642276,-1158.44044072,0.0003,10]
[359525421,1746090642285,-1246.67556792,0.0003,2]
[359525422,1746090642295,-159.0,0.0003,7]
[359525423,1746090642304,-265.74835313,0.0003,7]
[359525424,1746090642315,-213.0,0.0003,2]
[359525425,1746090642324,-10497.66,0.0003011,2]
[359525426,1746090642337,-150.0,0.00030136,2]
[359525427,1746090642348,-6633.98,0.00030137,2]
[359525428,1746090642358,-150.0,0.00030137,2]
[359525429,1746090642368,-610.0,0.00030137,2]
[359525430,1746090642378,-166.36249429,0.00030137,2]
[359525431,1746090642387,-169.04,0.00030247,2]
[359525432,1746090642396,-4933.59107884,0.00030383,22]
[359525433,1746090642405,-1613.0,0.00030476,2]
[359525434,1746090642415,-150.0,0.0003093,2]
[359525435,1746090642424,-600.0,0.00031,2]
[359525436,1746090642433,-1146.34,0.00031004,2]
[359525437,1746090642443,-259.77,0.00031147,2]
[359525438,1746090642452,-4933.59107884,0.00031245,24]
[359525439,1746090642462,-1000.0,0.00031337,2]
[359525440,1746090642471,-313.29156098,0.000314,30]
[359525441,1746090642481,-196.146347,0.00031492,2]
[359525442,1746090642490,-150.0,0.00031506,2]
[359525443,1746090642499,-6633.98,0.00031507,2]
[359525444,1746090642508,-150.0,0.00031723,2]
[359525445,1746090642517,-1533.56696301,0.00032,2]
[359525446,1746090642528,-4933.59107884,0.00032107,26]
[359525447,1746090642537,-442.8326386,0.00032122,2]
[359525448,1746090642547,-196.146347,0.00032279,2]
[359525449,1746090642556,-150.0,0.00032516,2]
[359525450,1746090642566,-241.55673039,0.000328,2]
[359525451,1746090642576,-4658.27428866,0.000328,2]
[359525452,1746090642585,-200.0,0.000328,2]
[359525453,1746090642595,-396.16628054,0.00032876,2]
[359525454,1746090642605,-200.0,0.00032876,2]
[359525456,1746090642619,-150.0,0.00032876,2]
[359525457,1746090642629,-200.0,0.00032876,2]
[359525458,1746090642638,-6633.98,0.00032877,2]
[359525459,1746090642647,-176.59,0.00032877,30]
[359525460,1746090642657,-331.98,0.00032877,2]
[359525461,1746090642667,-175.0,0.00032877,2]
[359525462,1746090642676,-804.65716414,0.000329,2]
[359525463,1746090642687,-204.10556556,0.0003293,30]
[359525464,1746090642696,-4933.59107884,0.00032969,28]
[359525465,1746090642705,-564.03684431,0.00033,120]
[359525466,1746090642715,-4561.98759854,0.00033,2]
[359525467,1746090642726,-650.0,0.00033,2]
[359525468,1746090642736,-213.0,0.00033,2]
[359525469,1746090642745,-196.146347,0.00033067,2]
[359525470,1746090642755,-216.8187967,0.000331,2]
[359525472,1746090642765,-200.0,0.00033128,2]
[359525473,1746090642775,-1000.0,0.00033165,2]
[359525474,1746090642785,-200.0,0.00033205,2]
[359525476,1746090642795,-200.0,0.00033205,2]
[359525477,1746090642805,-1146.34,0.00033268,2]
[359525479,1746090642815,-150.0,0.00033309,2]
[359525480,1746090642825,-200.0,0.00033459,2]
[359525482,1746090642834,-200.0,0.00033497,2]
[359525484,1746090642844,-1170.33504023,0.000335,2]
[359525486,1746090642854,-1061.0,0.000335,7]
[359525488,1746090642863,-200.0,0.00033537,2]
[359525490,1746090642873,-200.0,0.00033537,2]
[359525491,1746090642883,-200.0,0.00033794,2]
[359525493,1746090642893,-237.217446,0.00033806,2]
[359525495,1746090642902,-13389.73962372,0.00033815,30]
[359525496,1746090642912,-4933.59107884,0.00033831,29]
[359525497,1746090642921,-200.0,0.00033872,2]
[359525498,1746090642931,-200.0,0.00033872,2]
[359525499,1746090642940,-2033.18940034,0.00034,2]
[359525500,1746090642950,-155.65,0.00034,2]
[359525501,1746090642960,-155.65,0.00034,2]
[359525502,1746090642969,-155.65,0.00034,2]
[359525503,1746090642979,-155.65,0.00034,2]
[359525504,1746090642989,-155.65,0.00034,2]
[359525505,1746090642998,-150.0,0.00034102,2]
[359525506,1746090643008,-192.09798096,0.00034132,2]
[359525507,1746090643019,-2911.49,0.000342,7]
[359525508,1746090643029,-200.0,0.00034211,2]
[359525509,1746090643039,-200.0,0.00034211,2]
[359525510,1746090643049,-237.217446,0.00034229,2]
[359525511,1746090643059,-150.0,0.00034246,2]
[359525512,1746090643068,-150.0,0.00034548,10]
[359525513,1746090643078,-442.8326386,0.00034567,2]
[359525514,1746090643087,-237.217446,0.00034651,2]
[359525515,1746090643097,-4933.59107884,0.00034693,31]
[359525516,1746090643108,-150.0,0.00034895,2]
[359525517,1746090643118,-42326.55731167,0.0003498,2]
[359525518,1746090643127,-132271.92933389,0.00035,2]
[359525519,1746090643136,-228.03168548,0.00035,2]
[359525520,1746090643146,-700.0,0.00035,2]
[359525521,1746090643156,-3005.45970215,0.00035,3]
[359525522,1746090643165,-1121.83,0.00035068,2]
[359525523,1746090643175,-237.217446,0.00035074,2]
[359525524,1746090643184,-201.076,0.00035255,2]
[359525525,1746090643194,-264.778,0.00035255,2]
[359525526,1746090643203,-6750.0,0.00035255,2]
[359525527,1746090643213,-4003.0,0.00035255,2]
[359525528,1746090643222,-885.477,0.00035255,2]
[359525529,1746090643232,-878.0,0.00035255,2]
[359525530,1746090643241,-155.45524774,0.00035271,30]
[359525531,1746090643251,-150.0,0.00035271,30]
[359525532,1746090643261,-633.69682793,0.00035271,30]
[359525533,1746090643270,-258.452,0.00035313,2]
[359525534,1746090643279,-154.083,0.00035313,2]
[359525535,1746090643289,-1340.0,0.00035313,2]
[359525536,1746090643298,-1028.932,0.00035313,2]
[359525538,1746090643307,-797.0,0.00035313,2]
[359525539,1746090643316,-1299.805,0.00035313,2]
[359525540,1746090643326,-1053.242,0.00035313,2]
[359525541,1746090643335,-2125.147,0.00035313,2]
[359525542,1746090643345,-1492.729,0.00035313,2]
[359525543,1746090643354,-630.791,0.00035313,2]
[359525544,1746090643365,-596.257,0.00035313,2]
[359525545,1746090643377,-1003.85916262,0.00035352,5]
[359525546,1746090643387,-237.217446,0.00035496,2]
[359525547,1746090643398,-1146.34,0.00035532,2]
[359525548,1746090643408,-4933.59107884,0.00035555,33]
[359525549,1746090643418,-150.0,0.00035616,2]
[359525550,1746090643430,-1108.0071482,0.00035616,2]
[359525551,1746090643440,-150.0,0.00035688,2]
[359525552,1746090643452,-243.0,0.000357,48]
[359525553,1746090643464,-231.72212795,0.000359,2]
[359525554,1746090643474,-2928.10841516,0.000359,2]
[359525555,1746090643484,-33833.20755427,0.0003593,7]
[359525556,1746090643495,-151.0,0.0003593,7]
[359525557,1746090643505,-553.064693,0.0003593,7]
[359525558,1746090643516,-553.064693,0.0003593,7]
[359525559,1746090643526,-183061.3038097,0.00036,2]
[359525560,1746090643536,-6043.4123399,0.00036,2]
[359525561,1746090643545,-201.0,0.00036,30]
[359525562,1746090643554,-159.238569,0.00036,7]
[359525563,1746090643565,-151.0,0.00036,7]
[359525564,1746090643576,-151.0,0.00036,7]
[359525565,1746090643586,-151.0,0.00036,7]
[359525566,1746090643596,-160.7731,0.00036,7]
[359525567,1746090643609,-1006.112142,0.00036,7]
[359525568,1746090643621,-1006.112142,0.00036,7]
[359525569,1746090643630,-151.0,0.00036,7]
[359525570,1746090643640,-151.0,0.00036,7]
[359525571,1746090643649,-151.0,0.00036,7]
[359525572,1746090643659,-215.778034,0.00036,7]
[359525573,1746090643668,-281.517034,0.00036,7]
[359525574,1746090643677,-358.496672,0.00036,7]
[359525575,1746090643687,-281.517034,0.00036,7]
[359525576,1746090643697,-358.496672,0.00036,7]
[359525577,1746090643707,-2953.111486,0.00036,7]
[359525578,1746090643716,-314.905682,0.00036,7]
[359525579,1746090643726,-314.905682,0.00036,7]
[359525580,1746090643735,-151.0,0.00036,7]
[359525581,1746090643744,-151.0,0.00036,7]
[359525582,1746090643753,-151.0,0.00036,7]
[359525583,1746090643762,-220.216538,0.00036,7]
[359525584,1746090643771,-220.216538,0.00036,7]
[359525585,1746090643781,-151.0,0.00036,7]
[359525586,1746090643791,-151.0,0.00036,7]
[359525587,1746090643802,-151.0,0.00036,7]
[359525588,1746090643811,-151.0,0.00036,7]
[359525589,1746090643822,-246.528525,0.00036,7]
[359525590,1746090643832,-213.0,0.00036,2]
[359525591,1746090643842,-151.0,0.00036,7]
[359525592,1746090643851,-151.0,0.00036,7]
[359525593,1746090643861,-155.894,0.00036237,2]
[359525594,1746090643871,-808.0,0.00036243,5]
[359525595,1746090643882,-4933.59107884,0.00036417,34]
[359525596,1746090643892,-150.0,0.00036482,2]
[359525597,1746090643902,-409.04,0.000366,31]
[359525598,1746090643912,-409.04,0.000366,31]
[359525599,1746090643921,-409.04,0.000366,31]
[359525600,1746090643930,-409.04,0.000366,31]
[359525601,1746090643941,-409.04,0.000366,31]
[359525602,1746090643950,-409.04,0.000366,31]
[359525603,1746090643960,-409.04,0.000366,31]
[359525604,1746090643971,-409.04,0.000366,31]
[359525605,1746090643980,-409.04,0.000366,31]
[359525606,1746090643989,-409.04,0.000366,31]
[359525607,1746090643999,-409.04,0.000366,31]
[359525608,1746090644009,-409.04,0.000366,31]
[359525609,1746090644019,-160.0,0.000367,51]
[359525610,1746090644030,-250.0,0.0003681,7]
[359525611,1746090644040,-884.42612705,0.00036986,60]
[359525612,1746090644049,-150.0,0.00036986,2]
[359525613,1746090644059,-750.0,0.00037,2]
[359525614,1746090644068,-1326.03,0.00037,2]
[359525615,1746090644078,-442.8326386,0.00037011,2]
[359525616,1746090644088,-152.0,0.00037074,3]
[359525617,1746090644098,-241.55673039,0.00037076,2]
[359525618,1746090644107,-1270.27,0.00037122,5]
[359525619,1746090644117,-1242.95,0.00037164,5]
[359525620,1746090644126,-1251.49,0.00037164,5]
[359525621,1746090644136,-246.41118833,0.000372,120]
[359525622,1746090644148,-246.41118831,0.000372,120]
[359525623,1746090644157,-246.41118831,0.000372,120]
[359525624,1746090644166,-501.24300274,0.00037271,5]
[359525625,1746090644304,-1500.0,0.00037271,5]
[359525626,1746090644315,-645.9418004,0.00037271,5]
[359525627,1746090644324,-501.02381,0.00037271,5]
[359525628,1746090644333,-1181.36048334,0.00037271,5]
[359525629,1746090644342,-1500.0,0.00037271,5]
[359525630,1746090644352,-164.50740952,0.00037271,5]
[359525631,1746090644361,-150.0,0.00037275,2]
[359525632,1746090644371,-4933.59107884,0.00037279,36]
[359525633,1746090644380,-3975.40454564,0.00037376,7]
[359525634,1746090644391,-2641.87977231,0.0003749,2]
[359525635,1746090644401,-4210.05006415,0.0003759,2]
[359525636,1746090644413,-160.0,0.000377,54]
[359525637,1746090644422,-1146.34,0.00037796,2]
[359525638,1746090644433,-168.60832689,0.000378,2]
[359525639,1746090644443,-158.256317,0.00037974,7]
[359525640,1746090644452,-151.0,0.00037974,7]
[359525641,1746090644462,-151.0,0.00037974,7]
[359525642,1746090644471,-151.0,0.00037974,7]
[359525643,1746090644480,-151.0,0.00037974,7]
[359525644,1746090644489,-177.823338,0.00037974,7]
[359525645,1746090644498,-1336.790554,0.00037974,7]
[359525646,1746090644507,-177.823338,0.00037974,7]
[359525647,1746090644516,-1336.790554,0.00037974,7]
[359525648,1746090644525,-189.629939,0.00037974,7]
[359525649,1746090644535,-189.629939,0.00037974,7]
[359525650,1746090644543,-153.581679,0.00037974,7]
[359525651,1746090644553,-151.0,0.00037974,7]
[359525652,1746090644562,-151.0,0.00037974,7]
[359525653,1746090644571,-151.0,0.00037974,7]
[359525654,1746090644580,-151.0,0.00037974,7]
[359525655,1746090644589,-374.259646,0.00037974,7]
[359525656,1746090644599,-1997.025473,0.00037974,7]
[359525657,1746090644612,-637.623273,0.00037974,7]
[359525658,1746090644622,-374.259646,0.00037974,7]
[359525659,1746090644632,-1997.025473,0.00037974,7]
[359525660,1746090644643,-155.65,0.0003799,2]
[359525661,1746090644653,-172414.08187874,0.00038,7]
[359525662,1746090644662,-7031.76322372,0.00038,2]
[359525663,1746090644672,-501.03936166,0.00038,30]
[359525664,1746090644684,-151.0,0.00038,7]
[359525665,1746090644693,-151.0,0.00038,7]
[359525666,1746090644702,-151.0,0.00038,7]
[359525667,1746090644712,-151.0,0.00038,7]
[359525668,1746090644722,-540.608215,0.00038,7]
[359525669,1746090644731,-208.642372,0.00038,7]
[359525670,1746090644740,-540.608215,0.00038,7]
[359525671,1746090644749,-208.642372,0.00038,7]
[359525672,1746090644759,-151.0,0.00038,7]
[359525673,1746090644767,-151.0,0.00038,7]
[359525674,1746090644777,-150.0,0.00038068,2]
[359525675,1746090644786,-883.91875587,0.00038141,2]
[359525676,1746090644795,-4933.59107884,0.00038141,38]
[359525677,1746090644804,-246.41118831,0.00038176,120]
[359525678,1746090644814,-153.0,0.00038255,2]
[359525679,1746090644823,-153.0,0.00038255,2]
[359525680,1746090644832,-6750.0,0.00038255,2]
[359525681,1746090644842,-4003.0,0.00038255,2]
[359525682,1746090644851,-876.0,0.00038255,2]
[359525683,1746090644860,-878.0,0.00038255,2]
[359525684,1746090644869,-150.0,0.00038313,2]
[359525685,1746090644879,-1340.0,0.00038313,2]
[359525686,1746090644888,-923.0,0.00038313,2]
[359525687,1746090644898,-797.0,0.00038313,2]
[359525688,1746090644909,-1289.0,0.00038313,2]
[359525689,1746090644919,-913.0,0.00038313,2]
[359525690,1746090644928,-2070.0,0.00038313,2]
[359525691,1746090644938,-1449.0,0.00038313,2]
[359525692,1746090644948,-549.0,0.00038313,2]
[359525693,1746090644957,-580.0,0.00038313,2]
[359525694,1746090644966,-150.0,0.00038356,2]
[359525695,1746090644976,-176.59,0.00038356,30]
[359525696,1746090644985,-215.5267442,0.00038356,2]
[359525697,1746090644995,-39380.62,0.000384,14]
[359525698,1746090645005,-2000.0,0.000384,2]
[359525699,1746090645016,-151.0,0.000384,14]
[359525700,1746090645027,-265.566425,0.000384,14]
[359525701,1746090645037,-265.566425,0.000384,14]
[359525702,1746090645046,-5690.15,0.000384,14]
[359525703,1746090645056,-151.0,0.000384,14]
[359525704,1746090645065,-151.0,0.000384,14]
[359525705,1746090645075,-151.0,0.000384,14]
[359525706,1746090645085,-285.754276,0.000384,14]
[359525707,1746090645095,-175.663975,0.000384,14]
[359525708,1746090645104,-175.663975,0.000384,14]
[359525709,1746090645113,-244.835755,0.000384,14]
[359525710,1746090645123,-308.216953,0.000384,14]
[359525711,1746090645132,-308.216953,0.000384,14]
[359525712,1746090645143,-151.0,0.00038479,2]
[359525713,1746090645153,-207.4,0.00038479,2]
[359525714,1746090645163,-160.0,0.000387,57]
[359525715,1746090645173,-160.72490937,0.0003875,2]
[359525716,1746090645182,-150.0,0.00038861,2]
[359525717,1746090645193,-209.0,0.0003889,2]
[359525718,1746090645202,-409.04,0.000389,31]
[359525719,1746090645211,-409.04,0.000389,31]
[359525720,1746090645220,-409.04,0.000389,31]
[359525721,1746090645229,-409.04,0.000389,31]
[359525722,1746090645239,-409.04,0.000389,31]
[359525723,1746090645248,-409.04,0.000389,31]
[359525724,1746090645258,-409.04,0.000389,31]
[359525725,1746090645267,-409.04,0.000389,31]
[359525726,1746090645277,-409.04,0.000389,31]
[359525727,1746090645287,-409.04,0.000389,31]
[359525728,1746090645296,-409.04,0.000389,31]
[359525729,1746090645306,-409.04,0.000389,31]
[359525730,1746090645315,-409.04,0.000389,31]
[359525731,1746090645324,-409.04,0.000389,31]
[359525732,1746090645334,-409.04,0.000389,31]
[359525733,1746090645343,-409.04,0.000389,31]
[359525734,1746090645353,-409.04,0.000389,31]
[359525735,1746090645363,-409.04,0.000389,31]
[359525736,1746090645372,-409.04,0.000389,31]
[359525737,1746090645381,-409.04,0.000389,31]
[359525738,1746090645391,-409.04,0.000389,31]
[359525739,1746090645401,-409.04,0.000389,31]
[359525740,1746090645410,-409.04,0.000389,31]
[359525741,1746090645420,-409.04,0.000389,31]
[359525742,1746090645430,-1000.0,0.00038933,2]
[359525743,1746090645441,-11686.6387493,0.00038973,2]
[359525744,1746090645450,-180847.5125488,0.00038973,2]
[359525745,1746090645459,-4917.501198,0.00038973,2]
[359525746,1746090645468,-641.1550851,0.00038973,2]
[359525747,1746090645478,-20888.769941,0.00038973,2]
[359525748,1746090645489,-181.7206823,0.00038973,2]
[359525749,1746090645499,-1104.80592783,0.0003899,2]
[359525750,1746090645509,-1000.0,0.00039,120]
[359525751,1746090645519,-100949.2881616,0.00039,2]
[359525752,1746090645530,-6181.15370502,0.00039,10]
[359525753,1746090645539,-151.0,0.00039,14]
[359525754,1746090645548,-151.0,0.00039,14]
[359525755,1746090645557,-151.0,0.00039,14]
[359525756,1746090645567,-151.0,0.00039,14]
[359525757,1746090645576,-151.0,0.00039,14]
[359525758,1746090645586,-151.0,0.00039,14]
[359525759,1746090645596,-151.0,0.00039,14]
[359525760,1746090645606,-151.0,0.00039,14]
[359525761,1746090645617,-151.0,0.00039,14]
[359525762,1746090645627,-151.0,0.00039,14]
[359525763,1746090645637,-151.0,0.00039,14]
[359525764,1746090645647,-151.0,0.00039,14]
[359525766,1746090645656,-181.839761,0.00039,14]
[359525768,1746090645666,-151.0,0.00039,14]
[359525769,1746090645676,-151.0,0.00039,14]
[359525770,1746090645687,-163.257342,0.00039,14]
[359525771,1746090645698,-333.188523,0.00039,14]
[359525772,1746090645707,-333.188523,0.00039,14]
[359525773,1746090645716,-151.0,0.00039,14]
[359525774,1746090645726,-800.0,0.00039,2]
[359525775,1746090645735,-151.0,0.00039,14]
[359525776,1746090645745,-151.0,0.00039,14]
[359525777,1746090645755,-151.0,0.00039,14]
[359525778,1746090645764,-296.478012,0.00039,14]
[359525779,1746090645773,-151.0,0.00039,14]
[359525780,1746090645783,-151.0,0.00039,14]
[359525781,1746090645793,-151.0,0.00039,14]
[359525782,1746090645802,-151.0,0.00039,14]
[359525783,1746090645811,-155.722336,0.00039,14]
[359525784,1746090645821,-151.0,0.00039,14]
[359525785,1746090645830,-151.0,0.00039,14]
[359525786,1746090645839,-553.064693,0.00039,14]
[359525787,1746090645849,-553.064693,0.00039,14]
[359525788,1746090645858,-1326.03,0.00039,2]
[359525789,1746090645868,-4933.59107884,0.00039003,39]
[359525790,1746090645878,-181.5,0.0003916,30]
[359525791,1746090645889,-168.611437,0.00039168,2]
[359525792,1746090645899,-152.0,0.00039276,4]
[359525793,1746090645909,-5690.15,0.000393,14]
[359525794,1746090645919,-176.406723,0.0003934,14]
[359525795,1746090645929,-151.0,0.0003934,14]
[359525796,1746090645939,-153.00613,0.0003934,14]
[359525797,1746090645948,-151.0,0.0003934,14]
[359525798,1746090645958,-151.0,0.0003934,14]
[359525799,1746090645968,-151.0,0.0003934,14]
[359525800,1746090645978,-151.0,0.0003934,14]
[359525801,1746090645987,-314.905682,0.00039402,14]
[359525802,1746090645996,-314.905682,0.00039402,14]
[359525803,1746090646006,-151.0,0.00039402,14]
[359525804,1746090646015,-151.0,0.00039402,14]
[359525805,1746090646026,-151.0,0.00039402,14]
[359525806,1746090646152,-151.0,0.00039402,14]
[359525807,1746090646175,-442.8326386,0.00039456,2]
[359525809,1746090646185,-150.0,0.00039654,2]
[359525810,1746090646194,-2382.0,0.00039665,2]
[359525811,1746090646204,-160.0,0.000397,60]
[359525812,1746090646213,-200.0,0.00039719,13]
[359525813,1746090646222,-200.0,0.00039719,13]
[359525815,1746090646231,-200.0,0.00039719,13]
[359525816,1746090646240,-346.0,0.00039719,13]
[359525818,1746090646249,-500.0,0.00039719,60]